bitfinex-derivatives/quotes_BTCF0:USTF0_20210409
["timestamp","ask_amount","ask_price","bid_price","bid_amount"]
[1617964988669,10.97489965,58447.0,58445.0,0.4563]
[1617964988867,1.7,58446.0,58445.0,0.4563]
[1617964989086,6.62642832,58446.0,58445.0,0.4563]
[1617964990369,7.62642832,58446.0,58445.0,0.45528221]
[1617964990972,10.63582832,58446.0,58445.0,0.45528221]
[1617964991773,10.63582832,58446.0,58445.0,0.40439155]
[1617964995775,10.43582832,58446.0,58445.0,0.40439155]
[1617964996777,9.43582832,58446.0,58445.0,0.40439155]
[1617964996977,10.43582832,58446.0,58445.0,0.40439155]
[1617964999480,11.6272067,58446.0,58445.0,0.40439155]
[1617965000383,11.6272067,58446.0,58445.0,0.40337369]
[1617965001886,11.6272067,58446.0,58445.0,0.3015856]
[1617965002288,11.6272067,58446.0,58445.0,0.25069148]
[1617965007990,10.63582832,58446.0,58445.0,0.25069148]
[1617965008993,11.62587737,58446.0,58445.0,0.25069148]
[1617965010096,11.62587737,58446.0,58445.0,0.14890317]
[1617965010396,10.63582832,58446.0,58445.0,0.14788529]
[1617965011598,11.62698832,58446.0,58445.0,0.14788529]
[1617965012597,11.62698832,58446.0,58445.0,0.09699064]
[1617965015701,8.61758832,58446.0,58445.0,0.09699064]
[1617965015998,8.61758832,58446.0,58445.0,3.02639064]
[1617965016400,8.13525593,58446.0,58445.0,3.02639064]
[1617965016598,8.13525593,58446.0,58445.0,0.09699064]
[1617965017100,10.98915593,58446.0,58445.0,0.09699064]
[1617965017800,10.44325289,58446.0,58445.0,0.09699064]
[1617965018101,11.44325289,58446.0,58445.0,0.09699064]
[1617965018301,8.58935289,58446.0,58413.0,0.4751]
[1617965018501,2.6439,58426.0,58413.0,0.4751]
[1617965018904,1.58639222,58414.0,58413.0,0.4751]
[1617965019102,1.69364877,58414.0,58413.0,0.4751]
[1617965019302,1.69364877,58414.0,58413.0,0.7451]
[1617965019702,1.93110064,58414.0,58413.0,0.7451]
[1617965031917,1.93110064,58414.0,58413.0,0.7449]
[1617965041330,1.93110064,58414.0,58413.0,1.85215655]
[1617965041628,1.82384409,58414.0,58413.0,4.69145655]
[1617965042030,1.58639222,58414.0,58413.0,4.69145655]
[1617965043730,1.58639222,58414.0,58413.0,4.80681655]
[1617965048433,1.58639222,58414.0,58413.0,4.69145655]
[1617965053239,2.79875655,58424.0,58413.0,4.69145655]
[1617965053640,3.49595416,58424.0,58423.0,1.0]
[1617965054040,3.49595416,58424.0,58423.0,1.27]
[1617965054240,5.64758581,58424.0,58423.0,1.26898207]
[1617965054541,5.64758581,58424.0,58423.0,0.27]
[1617965054941,5.64758581,58424.0,58418.0,1.0]
[1617965055141,5.64758581,58424.0,58419.0,0.01]
[1617965055343,5.97029923,58424.0,58423.0,0.36725655]
[1617965055541,5.97029923,58424.0,58423.0,0.10725655]
[1617965055942,5.97029923,58424.0,58423.0,0.37725655]
[1617965059046,3.27879923,58424.0,58423.0,0.37725655]
[1617965060147,3.27879923,58424.0,58423.0,3.18675655]
[1617965060349,2.95608581,58424.0,58423.0,3.18675655]
[1617965060751,3.19933669,58424.0,58423.0,3.18675655]
[1617965062149,3.19933669,58424.0,58423.0,0.37725655]
[1617965062951,6.57383669,58424.0,58423.0,0.37725655]
[1617965063652,6.89603533,58424.0,58423.0,0.37725655]
[1617965064453,6.89603533,58424.0,58423.0,0.37623858]
[1617965067557,6.89603533,58424.0,58423.0,0.37693858]
[1617965068159,3.52153533,58424.0,58423.0,1.37693858]
[1617965068460,3.52153533,58424.0,58423.0,4.32493858]
[1617965068962,0.80445416,58424.0,58423.0,4.32493858]
[1617965069461,2.25750853,58424.0,58423.0,4.32493858]
[1617965069966,2.50101167,58424.0,58423.0,4.32493858]
[1617965070185,2.39375512,58424.0,58423.0,4.32493858]
[1617965070763,2.15025198,58424.0,58423.0,4.32493858]
[1617965074570,2.15025198,58424.0,58423.0,0.37693858]
[1617965074769,4.81215198,58424.0,58423.0,0.37693858]
[1617965075469,5.37793494,58424.0,58423.0,0.37592069]
[1617965075769,5.48519149,58424.0,58423.0,1.37592069]
[1617965076169,5.48519149,58424.0,58423.0,0.37592069]
[1617965077370,2.82329149,58424.0,58423.0,0.37592069]
[1617965077577,2.82329149,58424.0,58423.0,4.65402069]
[1617965078676,2.50067866,58424.0,58423.0,4.65402069]
[1617965078872,2.50067866,58424.0,58423.0,1.37592069]
[1617965080874,2.50067866,58424.0,58423.0,4.10632069]
[1617965081875,2.50067866,58424.0,58423.0,4.19995069]
[1617965082976,2.39342211,58424.0,58423.0,4.19995069]
[1617965083377,2.15025198,58424.0,58423.0,4.39995069]
[1617965083577,2.07435198,58424.0,58423.0,5.89995069]
[1617965083781,1.77240457,58424.0,58423.0,5.89995069]
[1617965084179,1.47610457,58424.0,58423.0,5.89995069]
[1617965084577,1.45060457,58424.0,58423.0,5.89995069]
[1617965084778,1.45060457,58424.0,58423.0,6.20479126]
[1617965084779,0.95287672,58424.0,58423.0,6.20479126]
[1617965085179,0.77328089,58424.0,58423.0,6.20479126]
[1617965088183,0.12358089,58424.0,58423.0,5.20479126]
[1617965088386,0.0610625,58424.0,58423.0,11.20479126]
[1617965088987,0.10725655,58451.0,58423.0,11.20479126]
[1617965088988,0.49528668,58439.0,58423.0,11.20479126]
[1617965089186,0.49528668,58439.0,58423.0,5.20479126]
[1617965089389,0.49542899,58440.0,58431.0,1.5]
[1617965089587,0.49542899,58440.0,58439.0,1.60725655]
[1617965089788,0.49542899,58440.0,58439.0,1.94421655]
[1617965090086,0.29432899,58440.0,58439.0,2.95421655]
[1617965090287,0.69437519,58459.0,58439.0,2.95421655]
[1617965090687,0.69472438,58461.0,58458.0,3.4564]
[1617965090887,0.69472438,58461.0,58458.0,3.59962]
[1617965091089,0.69500491,58464.0,58459.0,0.27]
[1617965091288,0.69500491,58464.0,58460.0,1.0]
[1617965091490,0.69500491,58464.0,58463.0,1.0]
[1617965091688,0.69500491,58464.0,58463.0,1.10725655]
[1617965091889,0.69500491,58464.0,58463.0,1.11623897]
[1617965092288,0.69500491,58464.0,58463.0,1.11725655]
[1617965093191,0.10725655,58466.0,58463.0,1.11725655]
[1617965093392,0.10725655,58466.0,58465.0,1.0]
[1617965093890,0.66368813,58466.0,58465.0,1.27]
[1617965094192,0.66368813,58466.0,58465.0,4.3969]
[1617965099099,0.66368813,58466.0,58465.0,3.3969]
[1617965100802,0.66368813,58466.0,58465.0,0.27]
[1617965101202,0.66368813,58466.0,58464.0,0.27]
[1617965101602,0.66368813,58466.0,58458.0,2.4744]
[1617965101603,0.66368813,58466.0,58465.0,0.27]
[1617965101804,0.66368813,58466.0,58464.0,0.27]
[1617965102102,0.66368813,58466.0,58459.0,0.27]
[1617965102303,0.55433842,58465.0,58459.0,0.26898249]
[1617965102502,0.55433842,58465.0,58458.0,2.4744]
[1617965102703,0.55419324,58463.0,58460.0,0.27]
[1617965103003,0.55419324,58463.0,58459.0,0.27]
[1617965103506,0.55406195,58462.0,58459.0,0.27]
[1617965103706,0.10725655,58460.0,58459.0,0.27]
[1617965104509,1.60725655,58460.0,58459.0,0.27]
[1617965104808,5.39127955,58460.0,58459.0,0.27]
[1617965105009,6.39127955,58460.0,58454.0,0.27]
[1617965105209,7.29810367,58460.0,58459.0,0.27]
[1617965105408,7.98891791,58460.0,58459.0,0.27]
[1617965105610,4.75861791,58460.0,58455.0,0.26]
[1617965105812,4.75861791,58460.0,58459.0,0.27]
[1617965106032,3.25861791,58460.0,58459.0,0.27]
[1617965106236,0.89237536,58459.0,58456.0,0.26]
[1617965106511,0.89237536,58459.0,58458.0,3.2945]
[1617965106712,0.06106281,58459.0,58458.0,3.2945]
[1617965106914,0.06106281,58459.0,58458.0,3.3045]
[1617965107214,1.10783743,58459.0,58458.0,0.01]
[1617965107412,4.78933743,58459.0,58458.0,0.01]
[1617965107712,4.72827462,58459.0,58441.0,0.27]
[1617965107913,4.72827462,58459.0,58458.0,0.27]
[1617965108112,4.93321256,58459.0,58458.0,0.27]
[1617965108313,4.93321256,58459.0,58441.0,0.27]
[1617965108527,1.5,58458.0,58441.0,0.27]
[1617965108737,1.0,58455.0,58440.0,0.4532]
[1617965108914,0.43438053,58442.0,58440.0,0.4532]
[1617965109112,0.56403053,58442.0,58441.0,0.27]
[1617965109525,0.62296123,58442.0,58441.0,0.27]
[1617965109718,0.73021778,58442.0,58438.0,0.27]
[1617965109932,0.73197097,58442.0,58438.0,0.27]
[1617965110122,0.73197097,58442.0,58441.0,0.27]
[1617965110322,0.73197097,58442.0,58438.0,0.27]
[1617965110521,0.43391163,58439.0,58438.0,0.27]
[1617965110713,0.43391163,58439.0,58437.0,0.10725655]
[1617965110914,0.43391163,58439.0,58438.0,0.27]
[1617965111314,0.06106324,58441.0,58438.0,0.27]
[1617965111615,0.49488379,58439.0,58438.0,0.27]
[1617965112118,0.43382002,58439.0,58438.0,0.27]
[1617965113419,0.78868488,58439.0,58438.0,0.27]
[1617965124528,0.35486486,58439.0,58438.0,0.27]
[1617965124728,0.85027562,58439.0,58438.0,0.27]
[1617965125029,0.78921195,58439.0,58438.0,0.27]
[1617965125629,1.28316972,58439.0,58438.0,0.27]
[1617965126329,1.3444412,58439.0,58438.0,0.27]
[1617965126729,1.28337467,58439.0,58438.0,0.27]
[1617965127630,0.10725655,58442.0,58438.0,0.27]
[1617965128054,0.10725655,58442.0,58435.0,0.4859]
[1617965128055,1.28323819,58439.0,58436.0,0.27]
[1617965128538,0.66000723,58442.0,58436.0,0.27]
[1617965128539,1.28324347,58437.0,58436.0,0.27]
[1617965129570,1.28324347,58437.0,58429.0,0.27]
[1617965129746,1.28324347,58437.0,58436.0,0.27]
[1617965129930,1.28324347,58437.0,58429.0,0.27]
[1617965130344,1.28324347,58437.0,58436.0,0.27]
[1617965130556,1.28324347,58437.0,58429.0,0.27]
[1617965130732,0.789873,58430.0,58429.0,0.27]
[1617965131031,0.891373,58430.0,58428.0,0.10725655]
[1617965131231,0.891373,58430.0,58429.0,0.27]
[1617965131635,0.1015,58430.0,58429.0,0.27]
[1617965132132,0.99849082,58430.0,58429.0,0.27]
[1617965133132,1.05955904,58430.0,58429.0,0.27]
[1617965134639,1.05955904,58430.0,58429.0,3.5592]
[1617965134833,1.20906234,58430.0,58429.0,3.5592]
[1617965135134,1.05955904,58430.0,58429.0,3.5592]
[1617965138036,1.55341443,58430.0,58429.0,3.5592]
[1617965138237,1.55341443,58430.0,58429.0,0.27]
[1617965141938,1.55341443,58430.0,58418.0,0.27]
[1617965142238,1.55341443,58430.0,58417.0,3.1093]
[1617965142239,1.55341443,58430.0,58429.0,0.27]
[1617965142439,1.55341443,58430.0,58418.0,0.27]
[1617965142839,4.64161443,58430.0,58429.0,0.27]
[1617965143041,4.64161443,58430.0,58419.0,0.27]
[1617965143242,0.4934413,58425.0,58419.0,0.27]
[1617965143439,0.4934413,58425.0,58416.0,0.10725655]
[1617965143639,0.78945399,58420.0,58418.0,0.01]
[1617965144040,0.54138701,58418.0,58417.0,0.26]
[1617965144240,0.64191701,58418.0,58416.0,0.10725655]
[1617965144442,0.20778655,58418.0,58416.0,0.10725655]
[1617965144643,0.20778655,58418.0,58417.0,0.27]
[1617965144943,0.64190114,58418.0,58417.0,0.27]
[1617965145443,0.9971318,58418.0,58417.0,0.27]
[1617965146143,1.05820447,58418.0,58417.0,0.27]
[1617965146546,0.56305184,58418.0,58417.0,0.27]
[1617965147644,0.99680253,58418.0,58417.0,0.27]
[1617965150548,0.56305184,58418.0,58417.0,0.27]
[1617965152251,0.99530702,58418.0,58417.0,0.27]
[1617965152648,0.56305184,58418.0,58417.0,0.27]
[1617965153652,0.99514548,58418.0,58417.0,0.27]
[1617965155653,0.99514548,58418.0,58417.0,2.8177]
[1617965157755,0.99514548,58418.0,58417.0,0.27]
[1617965157962,3.76555184,58418.0,58417.0,0.27]
[1617965158155,3.41028655,58418.0,58417.0,0.27]
[1617965158357,3.76376416,58418.0,58417.0,0.27]
[1617965160158,0.99412676,58418.0,58417.0,0.27]
[1617965160359,0.99412676,58418.0,58417.0,3.3473]
[1617965160757,0.99412676,58418.0,58417.0,3.6073]
[1617965162459,0.99412676,58418.0,58417.0,0.26]
[1617965162658,4.61362676,58418.0,58417.0,0.26]
[1617965162858,4.61362676,58418.0,58409.0,0.27]
[1617965163259,4.61362676,58418.0,58417.0,0.27]
[1617965163559,0.35414463,58410.0,58409.0,0.57430838]
[1617965163760,0.35414463,58410.0,58409.0,0.30430838]
[1617965164161,0.46140118,58410.0,58409.0,0.57430838]
[1617965164965,0.52247847,58410.0,58409.0,0.57430838]
[1617965165765,0.52247847,58410.0,58409.0,0.27]
[1617965166165,0.52247847,58410.0,58408.0,0.57431352]
[1617965166467,0.10725655,58410.0,58409.0,0.27]
[1617965166966,0.46126897,58410.0,58408.0,0.57431375]
[1617965167166,0.46126897,58410.0,58409.0,0.27]
[1617965167368,0.10725655,58410.0,58409.0,0.27]
[1617965167569,0.10725655,58410.0,58407.0,0.41157165]
[1617965167770,0.46128393,58410.0,58409.0,0.27]
[1617965167970,0.46128393,58410.0,58408.0,0.27]
[1617965168170,3.56178393,58410.0,58407.0,0.41157165]
[1617965168370,3.56178393,58410.0,58407.0,0.10725655]
[1617965168570,3.56178393,58410.0,58408.0,0.27]
[1617965168770,0.06107825,58409.0,58408.0,0.27]
[1617965169171,0.41470334,58409.0,58408.0,0.27]
[1617965169772,0.41470334,58409.0,58408.0,3.5006]
[1617965171172,0.06107825,58409.0,58408.0,3.80474285]
[1617965171472,0.41475742,58409.0,58408.0,3.5006]
[1617965171875,0.41475742,58409.0,58408.0,3.80474252]
[1617965172272,0.46102996,58410.0,58408.0,3.80474252]
[1617965173776,0.35371221,58409.0,58408.0,3.80474252]
[1617965174178,0.46106713,58410.0,58408.0,3.80474252]
[1617965175476,0.35386436,58409.0,58408.0,3.80474252]
[1617965175978,0.46113835,58410.0,58408.0,3.80474252]
[1617965176380,0.35387524,58409.0,58408.0,3.80474252]
[1617965176981,0.35387524,58409.0,58408.0,0.57414252]
[1617965177182,3.56517524,58409.0,58408.0,0.57414252]
[1617965177882,3.56517524,58409.0,58408.0,0.27]
[1617965178414,3.9965787,58409.0,58408.0,0.27]
[1617965180583,3.9965787,58409.0,58406.0,0.27]
[1617965180982,3.9965787,58409.0,58408.0,0.27]
[1617965181184,3.9965787,58409.0,58406.0,0.27]
[1617965181384,0.3525981,58407.0,58406.0,0.27]
[1617965181684,0.3525981,58407.0,58401.0,0.10725655]
[1617965181685,0.35266143,58407.0,58401.0,0.41128922]
[1617965181886,0.35266143,58407.0,58406.0,0.27]
[1617965182187,3.64230887,58409.0,58401.0,0.41128922]
[1617965182188,0.43095892,58408.0,58402.0,0.27]
[1617965182384,0.43095892,58408.0,58406.0,0.27]
[1617965182585,0.35265019,58407.0,58406.0,0.27]
[1617965182785,0.35265019,58407.0,58402.0,0.27]
[1617965183186,0.35265019,58407.0,58406.0,0.27]
[1617965183388,0.35260806,58404.0,58402.0,0.27]
[1617965183587,0.50289806,58404.0,58402.0,0.27]
[1617965183789,0.15029,58404.0,58401.0,0.10725655]
[1617965183990,0.50290059,58404.0,58401.0,0.10725655]
[1617965184190,0.61015714,58404.0,58403.0,0.27]
[1617965184392,0.61015714,58404.0,58402.0,0.27]
[1617965184591,0.61015714,58404.0,58401.0,0.10725655]
[1617965184800,0.67122957,58404.0,58403.0,0.27]
[1617965185091,0.67122957,58404.0,58402.0,0.57436251]
[1617965185390,0.67122957,58404.0,58403.0,0.27]
[1617965185590,0.25754655,58404.0,58403.0,0.27]
[1617965186015,1.53054144,58404.0,58403.0,0.27]
[1617965186492,1.53054144,58404.0,58402.0,0.27]
[1617965186493,1.04094308,58404.0,58402.0,0.27]
[1617965186696,1.04094308,58404.0,58403.0,0.27]
[1617965186896,0.25754655,58404.0,58403.0,0.27]
[1617965187096,0.25754655,58404.0,58402.0,0.27]
[1617965187296,1.04199108,58404.0,58402.0,0.27]
[1617965187495,1.04199108,58404.0,58403.0,0.27]
[1617965187696,0.84562708,58403.0,58402.0,0.27]
[1617965187998,0.84562708,58403.0,58401.0,0.10725655]
[1617965188296,0.84562708,58403.0,58402.0,0.27]
[1617965188497,0.06107969,58403.0,58402.0,0.27]
[1617965189000,0.84545642,58403.0,58402.0,0.27]
[1617965189297,0.78437673,58403.0,58402.0,0.27]
[1617965189897,0.84545766,58403.0,58402.0,0.27]
[1617965193000,0.84545766,58403.0,58402.0,2.7659]
[1617965194102,0.84545766,58403.0,58402.0,0.27]
[1617965197108,0.49247833,58403.0,58402.0,0.27]
[1617965197308,3.13037833,58403.0,58402.0,0.27]
[1617965197511,3.483234,58403.0,58402.0,0.27]
[1617965198309,3.63149222,58403.0,58402.0,0.27]
[1617965200412,3.63149222,58403.0,58397.0,0.27]
[1617965200613,3.57041129,58403.0,58397.0,0.27]
[1617965200814,3.57041129,58403.0,58402.0,0.27]
[1617965201015,2.6379,58403.0,58396.0,0.01]
[1617965201215,2.6379,58403.0,58398.0,0.26]
[1617965201421,3.42134293,58403.0,58402.0,0.27]
[1617965201616,3.42134293,58403.0,58397.0,0.01]
[1617965201816,3.42134293,58403.0,58399.0,0.25]
[1617965202017,3.42134293,58403.0,58398.0,0.01]
[1617965202217,0.78417173,58400.0,58398.0,0.01]
[1617965202418,0.78417173,58400.0,58397.0,0.01]
[1617965202620,0.78417173,58400.0,58399.0,0.01]
[1617965202820,0.43128465,58400.0,58399.0,0.01]
[1617965203020,0.43128465,58400.0,58395.0,0.26]
[1617965203220,0.78430241,58400.0,58399.0,0.01]
[1617965203619,0.78430241,58400.0,58396.0,0.25]
[1617965203819,0.78430241,58400.0,58398.0,0.27]
[1617965204123,0.43128465,58400.0,58397.0,0.25]
[1617965204321,0.10725655,58398.0,58394.0,0.01]
[1617965204520,0.10725655,58398.0,58393.0,0.30421367]
[1617965204721,0.10725655,58398.0,58396.0,0.27]
[1617965205029,0.10725655,58398.0,58394.0,0.01]
[1617965205030,0.35318258,58395.0,58394.0,0.01]
[1617965205221,0.35318258,58395.0,58393.0,1.30421367]
[1617965205420,0.41435162,58397.0,58393.0,1.30421367]
[1617965205619,0.41435162,58397.0,58394.0,0.27]
[1617965205920,0.35388307,58395.0,58394.0,0.27]
[1617965206821,0.35388307,58395.0,58394.0,1.57421086]
[1617965207020,0.35388307,58395.0,58394.0,0.57421086]
[1617965207221,0.35388307,58395.0,58394.0,0.30421086]
[1617965207623,0.35388307,58395.0,58394.0,0.57421086]
[1617965209625,0.35388307,58395.0,58394.0,1.57421086]
[1617965210124,0.35388307,58395.0,58394.0,0.57421086]
[1617965210725,0.35388307,58395.0,58394.0,1.57421086]
[1617965210925,0.35388307,58395.0,58394.0,0.57421086]
[1617965215033,0.28388307,58395.0,58394.0,0.57421086]
[1617965215533,0.10725655,58398.0,58394.0,0.57421086]
[1617965216933,0.54097885,58398.0,58394.0,0.27]
[1617965217334,0.54097885,58398.0,58394.0,0.30430742]
[1617965217633,0.54097885,58398.0,58394.0,0.57430742]
[1617965217836,0.54097885,58398.0,58394.0,0.27]
[1617965218034,0.43436182,58396.0,58394.0,0.5745152]
[1617965218233,0.43436182,58396.0,58394.0,0.3045152]
[1617965218634,0.43436182,58396.0,58395.0,0.27]
[1617965224145,0.43436182,58396.0,58395.0,1.57452925]
[1617965224345,0.43436182,58396.0,58395.0,0.57452925]
[1617965224546,0.43436182,58396.0,58395.0,0.30452925]
[1617965224847,0.43436182,58396.0,58395.0,0.57452925]
[1617965225048,0.43436182,58396.0,58395.0,0.27]
[1617965225549,0.43436182,58396.0,58395.0,0.3045263]
[1617965225748,3.69966182,58396.0,58395.0,0.27]
[1617965226148,3.69966182,58396.0,58394.0,0.57452908]
[1617965226349,3.76074259,58396.0,58395.0,0.27]
[1617965226550,0.49544259,58396.0,58395.0,0.27]
[1617965226749,0.4354586,58397.0,58395.0,0.57452655]
[1617965227150,0.43544033,58396.0,58395.0,0.30452655]
[1617965227659,0.43545061,58397.0,58395.0,0.31452655]
[1617965227962,0.43595401,58396.0,58395.0,0.0107]
[1617965228549,0.43595401,58396.0,58395.0,0.42280911]
[1617965229352,0.43595401,58396.0,58395.0,0.48388997]
[1617965230853,0.43595401,58396.0,58395.0,0.42280911]
[1617965232253,0.43595401,58396.0,58395.0,1.42280911]
[1617965232552,0.43595401,58396.0,58395.0,0.42280911]
[1617965232853,0.43595401,58396.0,58395.0,1.42280911]
[1617965233855,0.43654418,58397.0,58395.0,1.42280911]
[1617965234355,0.43654418,58397.0,58396.0,0.36595009]
[1617965234756,0.43654418,58397.0,58396.0,0.63595009]
[1617965237456,0.43654418,58397.0,58396.0,1.63595009]
[1617965239859,0.43654418,58397.0,58396.0,1.68655009]
[1617965240059,0.43654418,58397.0,58396.0,0.68655009]
[1617965240360,0.43654418,58397.0,58396.0,1.05282191]
[1617965240760,0.43654418,58397.0,58396.0,2.05282191]
[1617965240962,0.30794418,58397.0,58396.0,6.35692191]
[1617965241361,0.005,58400.0,58396.0,6.86556627]
[1617965241562,0.005,58400.0,58396.0,5.95717051]
[1617965241869,0.005,58400.0,58399.0,1.87484191]
[1617965242071,0.005,58400.0,58399.0,3.68001932]
[1617965242277,0.005,58400.0,58399.0,4.00081932]
[1617965242470,0.005,58400.0,58399.0,3.4921903]
[1617965242666,0.005,58400.0,58399.0,2.4921903]
[1617965242865,0.005,58400.0,58399.0,1.59119088]
[1617965243163,0.005,58400.0,58399.0,5.00291347]
[1617965243365,0.005,58400.0,58399.0,3.91131724]
[1617965243766,0.005,58400.0,58399.0,4.95211519]
[1617965245665,0.005,58400.0,58399.0,4.44471084]
[1617965246469,0.005,58400.0,58399.0,4.59106084]
[1617965246668,0.005,58400.0,58399.0,6.59847338]
[1617965246869,0.005,58400.0,58399.0,5.59847338]
[1617965247072,0.005,58400.0,58399.0,6.59847338]
[1617965255676,0.005,58400.0,58399.0,6.79847338]
[1617965257180,0.005,58400.0,58399.0,11.79847338]
[1617965257379,0.00398245,58400.0,58399.0,12.36574588]
[1617965259114,0.00398245,58400.0,58399.0,6.36574588]
[1617965259278,0.00398245,58400.0,58399.0,12.36574588]
[1617965260913,0.00398245,58400.0,58399.0,12.36644588]
[1617965261486,0.00398245,58400.0,58399.0,12.81199372]
[1617965264081,0.00398245,58400.0,58399.0,12.24472122]
[1617965265084,0.00398245,58400.0,58399.0,12.81051636]
[1617965265380,8.245e-05,58400.0,58399.0,12.81051636]
[1617965267382,0.54621862,58437.0,58404.0,0.00011755]
[1617965267782,0.54621862,58437.0,58405.0,0.27]
[1617965268081,0.54621862,58437.0,58434.0,1.0]
[1617965268380,0.54621862,58437.0,58436.0,3.0309]
[1617965268581,0.10725655,58437.0,58436.0,3.0309]
[1617965268881,0.10725655,58437.0,58436.0,3.40815655]
[1617965269796,0.10725655,58437.0,58436.0,4.40815655]
[1617965270187,0.10725655,58437.0,58436.0,3.40815655]
[1617965271389,0.10725655,58437.0,58436.0,4.40815655]
[1617965271609,0.4391443,58440.0,58436.0,4.40815655]
[1617965271790,0.4391443,58440.0,58436.0,1.37725655]
[1617965271987,0.49901401,58445.0,58439.0,3.6399]
[1617965272487,0.49901401,58445.0,58440.0,1.27]
[1617965272888,0.49901401,58445.0,58444.0,0.10725655]
[1617965273187,0.93835181,58445.0,58444.0,0.10725655]
[1617965273388,0.93835181,58445.0,58444.0,0.37725655]
[1617965274197,3.83595181,58445.0,58444.0,0.27]
[1617965274590,3.83595181,58445.0,58416.0,0.9357]
[1617965274591,5.46665577,58445.0,58435.0,0.27]
[1617965274789,0.10725655,58436.0,58435.0,0.27]
[1617965274991,0.10725655,58436.0,58428.0,0.10725655]
[1617965275394,0.10725655,58436.0,58435.0,0.27]
[1617965275592,0.10725655,58436.0,58429.0,0.25]
[1617965275792,0.54593907,58436.0,58428.0,0.10725655]
[1617965275991,0.54593907,58436.0,58435.0,0.27]
[1617965276193,0.54593907,58436.0,58429.0,0.27]
[1617965276194,0.43865401,58432.0,58429.0,0.27]
[1617965276391,0.58178401,58432.0,58429.0,0.27]
[1617965276594,0.58178401,58432.0,58428.0,0.10725655]
[1617965276795,0.10725655,58429.0,58428.0,0.10725655]
[1617965277196,0.10725655,58429.0,58428.0,0.37725655]
[1617965282101,4.95435655,58429.0,58428.0,0.27]
[1617965282547,4.95435655,58429.0,58417.0,0.27]
[1617965282732,0.2,58428.0,58417.0,0.27]
[1617965282902,2.99325655,58418.0,58410.0,0.10725655]
[1617965283100,3.14204655,58418.0,58410.0,0.10725655]
[1617965283404,3.14204655,58418.0,58413.0,0.27]
[1617965283702,3.14204655,58418.0,58411.0,0.26]
[1617965283901,3.14204655,58418.0,58414.0,0.27]
[1617965284201,0.43776824,58417.0,58411.0,0.27]
[1617965284602,0.69383777,58418.0,58417.0,3.6893]
[1617965284801,0.69383777,58418.0,58411.0,0.27]
[1617965285003,3.57573777,58418.0,58417.0,0.01]
[1617965285405,3.57573777,58418.0,58410.0,0.10725655]
[1617965285603,3.57573777,58418.0,58417.0,0.01]
[1617965286005,3.70842379,58418.0,58410.0,0.10725655]
[1617965286304,3.70842379,58418.0,58417.0,0.27]
[1617965286504,3.70842379,58418.0,58411.0,0.01]
[1617965286803,0.10725655,58411.0,58410.0,0.10725655]
[1617965287203,0.10725655,58411.0,58410.0,0.37725655]
[1617965288006,0.10725655,58411.0,58410.0,0.27]
[1617965288511,0.10725655,58411.0,58405.0,0.27]
[1617965288707,3.3969,58406.0,58404.0,0.00011755]
[1617965288909,0.10725655,58405.0,58404.0,0.00011755]
[1617965289309,0.10725655,58405.0,58404.0,0.01011755]
[1617965291210,0.10725655,58405.0,58404.0,0.01]
[1617965291611,0.10725655,58405.0,58400.0,0.27]
[1617965291812,2.75815655,58405.0,58400.0,0.27]
[1617965293915,0.10725655,58405.0,58400.0,0.27]
[1617965294115,3.2393,58401.0,58400.0,0.27]
[1617965295218,3.67633437,58401.0,58397.0,0.27]
[1617965295419,0.43703437,58401.0,58397.0,0.27]
[1617965295619,0.43703437,58401.0,58400.0,0.26]
[1617965295918,0.43703437,58401.0,58398.0,0.27]
[1617965296221,0.43703437,58401.0,58392.0,0.01]
[1617965296222,0.43703437,58401.0,58400.0,0.26]
[1617965296420,0.43703437,58401.0,58399.0,0.26]
[1617965296820,0.10725655,58392.0,58391.0,0.55383842]
[1617965297120,3.51111655,58392.0,58391.0,0.30383842]
[1617965297322,3.51111655,58392.0,58391.0,0.27]
[1617965297721,3.51111655,58392.0,58389.0,0.27]
[1617965298223,3.51111655,58392.0,58391.0,0.27]
[1617965298421,3.51111655,58392.0,58389.0,0.27]
[1617965298621,3.51111655,58392.0,58391.0,0.27]
[1617965298923,3.51111655,58392.0,58389.0,0.27]
[1617965299423,3.51111655,58392.0,58388.0,0.4947]
[1617965299424,3.51111655,58392.0,58391.0,0.27]
[1617965299723,3.51111655,58392.0,58389.0,0.27]
[1617965299924,3.51111655,58392.0,58391.0,0.27]
[1617965300229,3.51111655,58392.0,58389.0,0.27]
[1617965300629,3.51111655,58392.0,58391.0,0.27]
[1617965300825,3.51111655,58392.0,58389.0,0.27]
[1617965301224,3.51111655,58392.0,58391.0,0.27]
[1617965301426,3.51111655,58392.0,58389.0,0.27]
[1617965301825,5.01111655,58392.0,58389.0,0.27]
[1617965302028,1.75441655,58392.0,58389.0,0.27]
[1617965302325,3.5779,58390.0,58389.0,0.27]
[1617965303327,0.25441655,58392.0,58385.0,0.4954]
[1617965303532,0.25441655,58392.0,58386.0,0.27]
[1617965303731,2.73791655,58392.0,58386.0,0.27]
[1617965304128,2.73791655,58392.0,58384.0,0.27]
[1617965305127,0.10725655,58385.0,58384.0,0.27]
[1617965306830,0.10725655,58385.0,58384.0,3.4219]
[1617965309234,0.10725655,58385.0,58384.0,0.27]
[1617965311938,0.10725655,58385.0,58384.0,0.2698]
[1617965319247,2.6288,58392.0,58384.0,0.2698]
[1617965321047,0.10725655,58385.0,58384.0,0.2698]
[1617965326661,0.43450625,58403.0,58384.0,4.6816]
[1617965326892,0.43450625,58403.0,58384.0,4.8295]
[1617965327061,2.9744,58404.0,58402.0,0.10725655]
[1617965327353,2.8326,58406.0,58402.0,0.10725655]
[1617965327567,2.8326,58406.0,58403.0,0.27]
[1617965328276,4.3326,58406.0,58403.0,0.27]
[1617965329155,0.10725655,58404.0,58403.0,0.27]
[1617965335664,1.18361039,58404.0,58403.0,0.27]
[1617965335865,1.18361039,58404.0,58393.0,0.3042594]
[1617965336065,1.18361039,58404.0,58403.0,0.27]
[1617965336565,1.18361039,58404.0,58394.0,0.27]
[1617965336867,1.18361039,58404.0,58393.0,0.27]
[1617965337066,1.18361039,58404.0,58392.0,0.27]